[Event "FIDE WSTC Open 50 2025"]
[Site "Prague"]
[Date "2025.02.20"]
[Round "4.11"]
[White "Stohl, Igor"]
[Black "Shabalov, Alexander"]
[Result "1/2-1/2"]
[Annotator "RC"]
[ECO "D76"]
[WhiteElo "2409"]
[BlackElo "2471"]
[PlyCount "58"]
[EventDate "2025.02.17"]
[EventType "team-tourn"]
[EventCountry "CZE"]
[SourceTitle "playchess.com"]
[Source "ChessBase"]
[SourceQuality "1"]
[TimeControl "40/5400+30:1800+30"]

1. Nf3 {[%emt 0:00:18]} Nf6 {[%emt 0:00:50]} 2. c4 {[%emt 0:01:11]} g6 {[%emt 0:01:21]} 3. g3 {[%emt 0:01:46]} Bg7 {[%emt 0:00:11]} 4. Bg2 {[%emt 0:00:08]} O-O {[%emt 0:00:07]} 5. O-O {[%emt 0:00:51]} d5 6. cxd5 {[%emt 0:01:01]} Nxd5 {[%emt 0:02:04]} 7. d4 {[%emt 0:00:21]} Nb6 {[%emt 0:00:06]} 8. Nc3 {[%emt 0:00:33]} Nc6 {[%emt 0:00:12]} 9. e3 {[%emt 0:01:21]} a5 {[%emt 0:00:07]} 10. d5 {[%emt 0:21:01]} Nb4 {[%emt 0:01:31]} 11. e4 {[%emt 0:01:15]} f5 {[%emt 0:00:06]} 12. Nh4 {[%emt 0:16:43]} fxe4 {[%emt 0:14:56]} 13. Bxe4 {[%emt 0:01:32]} Bh3 {[%emt 0:08:40]} 14. Re1 {[%emt 0:01:32]} c6 {[%emt 0:09:12]} 15. dxc6 {[%emt 0:03:47]} Qxd1 {[%emt 0:00:19]} 16. Rxd1 {[%emt 0:01:29]} bxc6 {[%emt 0:00:39]} 17. Bg5 {[%emt 0:18:04]} e6 {[%emt 0:03:04]} 18. Rac1 {[%emt 0:01:49]} N6d5 {[%emt 0:08:37]} 19. Na4 {[%emt 0:04:39]} Nxa2 {[%emt 0:09:31]} 20. Rxc6 {[%emt 0:00:32]} Nab4 {[%emt 0:00:27]} 21. Rcc1 {[%emt 0:04:20]} Rab8 {[%emt 0:08:55]} 22. Bg2 {[%emt 0:02:47]} Bxg2 {[%emt 0:06:14]} 23. Nxg2 {[%emt 0:00:13]} Rbc8 {[%emt 0:02:45]} 24. Rxc8 {[%emt 0:02:36]} Rxc8 {[%emt 0:00:02]} 25. Rc1 {[%emt 0:00:10]} Rxc1+ {[%emt 0:07:11]} 26. Bxc1 {[%emt 0:00:03]} Nd3 {[%emt 0:00:14]} 27. Bd2 {[%emt 0:00:34]} N5b4 {[%emt 0:00:16]} 28. b3 {[%emt 0:03:30]} Nc6 {[%emt 0:06:08]} 29. Ne1 Nxe1 1/2-1/2

[Event "FIDE WSTC Open 50 2025"]
[Site "Prague"]
[Date "2025.02.20"]
[Round "4.12"]
[White "Rachels, Stuart"]
[Black "Lipka, Juraj"]
[Result "1-0"]
[Annotator "RC"]
[ECO "C09"]
[WhiteElo "2466"]
[BlackElo "2348"]
[PlyCount "139"]
[EventDate "2025.02.17"]
[EventType "team-tourn"]
[EventCountry "CZE"]
[SourceTitle "playchess.com"]
[Source "ChessBase"]
[SourceQuality "1"]
[TimeControl "40/5400+30:1800+30"]

1. e4 {[%emt 0:00:03]} e6 {[%emt 0:00:04]} 2. d4 {[%emt 0:00:07]} d5 {[%emt 0:00:06]} 3. Nd2 {[%emt 0:00:08]} c5 {[%emt 0:00:09]} 4. exd5 {[%emt 0:00:13]} exd5 {[%emt 0:00:08]} 5. Ngf3 {[%emt 0:00:21]} Nc6 {[%emt 0:01:11]} 6. Bb5 {[%emt 0:00:16]} Qe7+ {[%emt 0:00:19]} 7. Be2 {[%emt 0:00:21]} Qc7 {[%emt 0:00:57]} 8. O-O {[%emt 0:01:34]} Nf6 {[%emt 0:00:23]} 9. dxc5 {[%emt 0:03:12]} Bxc5 {[%emt 0:01:23]} 10. Nb3 {[%emt 0:00:09]} Be7 {[%emt 0:00:45]} 11. Re1 {[%emt 0:01:16]} O-O {[%emt 0:00:57]} 12. c3 {[%emt 0:01:25]} h6 {[%emt 0:05:05]} 13. Be3 {[%emt 0:07:28]} Re8 {[%emt 0:03:46]} 14. h3 {[%emt 0:09:51]} Bf5 {[%emt 0:06:27]} 15. Nbd4 {[%emt 0:08:55]} Bg6 {[%emt 0:02:43]} 16. Nh4 {[%emt 0:06:41]} Bh7 {[%emt 0:02:23]} 17. Nhf5 {[%emt 0:01:59]} Bf8 {[%emt 0:03:07]} 18. Bd3 {[%emt 0:03:33]} Ne4 {[%emt 0:08:21]} 19. Qg4 {[%emt 0:17:35]} Ne5 {[%emt 0:15:43]} 20. Qf4 {[%emt 0:04:51]} g5 {[%emt 0:04:29]} 21. Qh2 {[%emt 0:00:13]} Bxf5 {[%emt 0:03:35]} 22. Nxf5 {[%emt 0:00:12]} Qd7 {[%emt 0:01:27]} 23. Bxe4 {[%emt 0:03:45]} dxe4 {[%emt 0:00:07]} 24. Ng3 {[%emt 0:00:55]} f5 {[%emt 0:10:02]} 25. Bd4 {[%emt 0:00:49]} Bd6 {[%emt 0:02:30]} 26. h4 {[%emt 0:00:45]} g4 {[%emt 0:02:15]} 27. Qh1 {[%emt 0:11:03]} Qf7 {[%emt 0:01:46]} 28. Bxe5 {[%emt 0:01:08]} Bxe5 {[%emt 0:00:26]} 29. Nf1 {[%emt 0:00:16]} h5 {[%emt 0:03:15]} 30. g3 {[%emt 0:00:43]} Rad8 {[%emt 0:01:35]} 31. Qg2 {[%emt 0:00:19]} Rd3 {[%emt 0:02:03]} 32. Re2 {[%emt 0:00:06]} Red8 {[%emt 0:01:19]} 33. Ne3 {[%emt 0:00:33]} Bc7 {[%emt 0:01:02]} 34. c4 {[%emt 0:01:45]} Be5 {[%emt 0:01:39]} 35. Rb1 {[%emt 0:03:00]} R8d4 {[%emt 0:02:08]} 36. b3 {[%emt 0:01:21]} Rd2 {[%emt 0:06:30]} 37. Rbe1 {[%emt 0:02:10]} Rxe2 {[%emt 0:03:05]} 38. Rxe2 {[%emt 0:00:02]} f4 {[%emt 0:01:10]} 39. gxf4 {[%emt 0:00:12]} Qxf4 {[%emt 0:00:29]} 40. Nf1 {[%emt 0:00:15]} Qf3 {[%emt 0:02:55]} 41. Re3 {[%emt 0:33:56]} Bf4 {[%emt 0:04:34]} 42. Re1 {[%emt 0:00:00]} Kf7 {[%emt 0:02:27]} 43. Nh2 {[%emt 0:00:00]} Qxg2+ {[%emt 0:02:39]} 44. Kxg2 {[%emt 0:00:00]} Bxh2 {[%emt 0:06:09]} 45. Kxh2 {[%emt 0:00:00]} Kf6 {[%emt 0:00:41]} 46. Kg2 {[%emt 0:00:00]} Ke5 {[%emt 0:02:49]} 47. Re2 {[%emt 0:00:00]} Rd3 {[%emt 0:03:14]} 48. c5 {[%emt 0:00:00]} Rc3 {[%emt 0:05:26]} 49. b4 {[%emt 0:00:00]} Rc4 {[%emt 0:03:41]} 50. Rb2 {[%emt 0:00:00]} Kd5 {[%emt 0:02:31]} 51. Kg3 {[%emt 0:00:00]} Rc3+ {[%emt 0:00:41]} 52. Kf4 {[%emt 0:00:00]} Rf3+ {[%emt 0:00:38]} 53. Kg5 {[%emt 0:00:00]} g3 {[%emt 0:00:25]} 54. fxg3 {[%emt 0:00:00]} Rxg3+ {[%emt 0:00:04]} 55. Kxh5 {[%emt 0:00:00]} e3 {[%emt 0:02:04]} 56. Kh6 {[%emt 0:00:00]} Kc4 {[%emt 0:00:54]} 57. h5 {[%emt 0:00:00]} Kc3 {[%emt 0:00:38]} 58. Rh2 {[%emt 0:00:00]} Kd3 {[%emt 0:00:37]} 59. Kh7 {[%emt 0:00:00]} e2 {[%emt 0:00:29]} 60. Rh1 {[%emt 0:00:00]} Kd2 {[%emt 0:01:04]} 61. h6 {[%emt 0:00:00]} Rg4 {[%emt 0:00:44]} 62. b5 {[%emt 0:00:00]} Rg5 {[%emt 0:00:21]} 63. c6 {[%emt 0:02:31]} Rxb5 {[%emt 0:00:33]} 64. Kg6 {[%emt 0:02:19]} Rb6 {[%emt 0:00:17]} 65. h7 {[%emt 0:02:25]} Rxc6+ {[%emt 0:00:06]} 66. Kg7 {[%emt 0:00:11]} Rc7+ {[%emt 0:00:08]} 67. Kg6 {[%emt 0:00:05]} Rc8 {[%emt 0:00:14]} 68. Kg7 {[%emt 0:01:36]} e1=Q {[%emt 0:00:10]} 69. Rxe1 {[%emt 0:00:07]} Kxe1 {[%emt 0:00:05]} 70. h8=B {[%emt 0:00:08]} 1-0

[Event "FIDE WSTC Open 50 2025"]
[Site "Prague"]
[Date "2025.02.20"]
[Round "4.13"]
[White "Svensson, Bengt"]
[Black "Polak, Tomas"]
[Result "0-1"]
[Annotator "RC"]
[ECO "B10"]
[WhiteElo "2297"]
[BlackElo "2463"]
[PlyCount "68"]
[EventDate "2025.02.17"]
[EventType "team-tourn"]
[EventCountry "CZE"]
[SourceTitle "playchess.com"]
[Source "ChessBase"]
[SourceQuality "1"]
[TimeControl "40/5400+30:1800+30"]

1. e4 {[%emt 0:00:03]} c6 {[%emt 0:00:09]} 2. Nf3 {[%emt 0:00:22]} d5 {[%emt 0:00:13]} 3. exd5 {[%emt 0:00:46]} cxd5 {[%emt 0:00:09]} 4. Ne5 {[%emt 0:00:32]} Nc6 {[%emt 0:01:29]} 5. d4 {[%emt 0:00:37]} Nf6 {[%emt 0:03:16]} 6. Bb5 {[%emt 0:02:01]} Bd7 {[%emt 0:00:38]} 7. Nxd7 {[%emt 0:02:12]} Qxd7 {[%emt 0:00:07]} 8. c3 {[%emt 0:00:59]} e6 {[%emt 0:00:53]} 9. O-O {[%emt 0:00:56]} Bd6 {[%emt 0:02:51]} 10. Re1 {[%emt 0:05:30]} O-O {[%emt 0:07:23]} 11. Nd2 {[%emt 0:01:24]} h6 {[%emt 0:05:17]} 12. Nf3 {[%emt 0:04:59]} Ne4 {[%emt 0:01:20]} 13. c4 {[%emt 0:13:22]} a6 {[%emt 0:04:03]} 14. Ba4 {[%emt 0:06:31]} Rad8 {[%emt 0:03:08]} 15. Ne5 {[%emt 0:11:06]} Qc7 {[%emt 0:16:48]} 16. Bxc6 {[%emt 0:05:47]} bxc6 {[%emt 0:05:09]} 17. Qc2 {[%emt 0:03:55]} c5 {[%emt 0:08:54]} 18. cxd5 {[%emt 0:03:07]} exd5 {[%emt 0:00:08]} 19. Nf3 {[%emt 0:02:13]} c4 {[%emt 0:02:33]} 20. Bd2 {[%emt 0:04:02]} Rfe8 {[%emt 0:06:06]} 21. Bc3 {[%emt 0:01:28]} Re6 {[%emt 0:00:59]} 22. Qa4 {[%emt 0:07:46]} Qb8 {[%emt 0:05:20]} 23. Qa5 {[%emt 0:03:46]} Bc7 {[%emt 0:01:08]} 24. Qa4 {[%emt 0:00:17]} Rde8 {[%emt 0:06:34]} 25. h3 {[%emt 0:05:06]} Qc8 {[%emt 0:01:54]} 26. Rad1 {[%emt 0:02:16]} Rg6 {[%emt 0:05:57]} 27. Kf1 {[%emt 0:02:27]} Rf6 {[%emt 0:00:33]} 28. Re3 {[%emt 0:02:02]} Ng3+ {[%emt 0:00:53]} 29. Ke1 {[%emt 0:00:52]} Rxe3+ {[%emt 0:00:46]} 30. fxe3 {[%emt 0:00:01]} Ne4 {[%emt 0:03:07]} 31. Ke2 {[%emt 0:01:28]} Rxf3 {[%emt 0:03:17]} 32. gxf3 {[%emt 0:00:12]} Qxh3 {[%emt 0:00:04]} 33. Rc1 {[%emt 0:05:45]} Qg2+ {[%emt 0:00:33]} 34. Kd1 {[%emt 0:00:08]} Qf1+ {[%emt 0:00:22]} 0-1

[Event "FIDE WSTC Open 50 2025"]
[Site "Prague"]
[Date "2025.02.20"]
[Round "4.14"]
[White "Holemar, David"]
[Black "Svenn, Gosta"]
[Result "1-0"]
[Annotator "ChessBase"]
[ECO "A10"]
[WhiteElo "2150"]
[BlackElo "2290"]
[PlyCount "57"]
[EventDate "2025.02.17"]
[EventType "team-tourn"]
[EventCountry "CZE"]
[SourceTitle "playchess.com"]
[Source "ChessBase"]
[SourceQuality "1"]
[TimeControl "40/5400+30:1800+30"]

1. c4 {[%emt 0:00:04]} f5 {[%emt 0:00:16]} 2. Nc3 {[%emt 0:00:21]} Nf6 {[%emt 0:00:10]} 3. e4 {[%emt 0:00:40]} e5 {[%emt 0:17:26]} 4. Nf3 {[%emt 0:06:58]} Bc5 {[%emt 0:12:05]} 5. Nxe5 {[%emt 0:12:01]} Nc6 {[%emt 0:16:42]} 6. Nd3 {[%emt 0:00:56]} Bd4 {[%emt 0:00:24]} 7. exf5 {[%emt 0:02:21]} O-O {[%emt 0:00:34]} 8. Be2 {[%emt 0:00:08]} d6 {[%emt 0:09:13]} 9. O-O {[%emt 0:03:29]} Bxf5 {[%emt 0:00:35]} 10. Ne1 {[%emt 0:07:30]} Qd7 {[%emt 0:12:06]} 11. Nf3 {[%emt 0:06:45]} Rae8 {[%emt 0:05:47]} 12. Nb5 {[%emt 0:08:23]} Bb6 {[%emt 0:00:55]} 13. d4 {[%emt 0:00:35]} Nb4 {[%emt 0:13:50]} 14. Bg5 {[%emt 0:15:20]} Rxe2 {[%emt 0:02:57]} 15. Qxe2 {[%emt 0:00:23]} Bd3 {[%emt 0:00:08]} 16. Qd2 {[%emt 0:04:03]} Bxc4 {[%emt 0:03:58]} 17. Qxb4 {[%emt 0:02:06]} Bxb5 {[%emt 0:00:06]} 18. Qb3+ {[%emt 0:02:10]} Kh8 {[%emt 0:00:11]} 19. Rfe1 {[%emt 0:00:20]} Bc6 {[%emt 0:00:12]} 20. Bxf6 {[%emt 0:02:34]} Rxf6 {[%emt 0:00:27]} 21. d5 {[%emt 0:00:32]} Ba4 {[%emt 0:00:28]} 22. Qc4 {[%emt 0:02:58]} Bb5 {[%emt 0:00:45]} 23. Qe4 {[%emt 0:00:20]} Qf7 {[%emt 0:00:28]} 24. a4 {[%emt 0:04:17]} Bd7 {[%emt 0:00:29]} 25. a5 {[%emt 0:01:04]} Bc5 {[%emt 0:00:13]} 26. b4 {[%emt 0:00:13]} Rf4 {[%emt 0:00:24]} 27. Qe7 {[%emt 0:00:27]} Rxf3 {[%emt 0:02:02]} 28. gxf3 {[%emt 0:03:22]} Qg6+ {[%emt 0:00:05]} 29. Kh1 {[%emt 0:00:07]} 1-0

[Event "FIDE WSTC Open 50 2025"]
[Site "Prague"]
[Date "2025.02.20"]
[Round "4.15"]
[White "Jaderberg, Bjorn"]
[Black "Skacelik, Petr"]
[Result "1/2-1/2"]
[Annotator "ChessBase"]
[ECO "A36"]
[WhiteElo "2134"]
[BlackElo "2132"]
[PlyCount "150"]
[EventDate "2025.02.17"]
[EventType "team-tourn"]
[EventCountry "CZE"]
[SourceTitle "playchess.com"]
[Source "ChessBase"]
[SourceQuality "1"]
[TimeControl "40/5400+30:1800+30"]

1. c4 {[%emt 0:00:02]} c5 {[%emt 0:00:05]} 2. Nc3 {[%emt 0:00:13]} Nc6 {[%emt 0:00:06]} 3. g3 {[%emt 0:00:12]} g6 {[%emt 0:00:27]} 4. Bg2 {[%emt 0:00:14]} Bg7 {[%emt 0:00:05]} 5. e4 {[%emt 0:00:14]} d6 {[%emt 0:00:22]} 6. Nge2 {[%emt 0:00:16]} e6 {[%emt 0:00:23]} 7. d3 {[%emt 0:00:53]} Nge7 {[%emt 0:00:08]} 8. O-O {[%emt 0:00:31]} O-O {[%emt 0:00:08]} 9. Rb1 {[%emt 0:00:27]} Rb8 {[%emt 0:04:57]} 10. a3 {[%emt 0:01:48]} a5 {[%emt 0:00:04]} 11. Nb5 {[%emt 0:06:39]} e5 {[%emt 0:05:37]} 12. Nec3 {[%emt 0:01:27]} Be6 {[%emt 0:00:57]} 13. Nd5 {[%emt 0:01:34]} Nd4 {[%emt 0:01:55]} 14. Nxd4 {[%emt 0:02:18]} exd4 {[%emt 0:00:29]} 15. b4 {[%emt 0:03:07]} Bxd5 {[%emt 0:00:16]} 16. exd5 {[%emt 0:01:04]} axb4 {[%emt 0:00:12]} 17. axb4 {[%emt 0:00:15]} b6 {[%emt 0:00:20]} 18. Bf4 {[%emt 0:01:25]} h6 {[%emt 0:03:27]} 19. h4 {[%emt 0:04:30]} Kh7 {[%emt 0:02:13]} 20. Re1 {[%emt 0:02:12]} Qd7 {[%emt 0:08:00]} 21. Kh2 {[%emt 0:04:38]} Ng8 {[%emt 0:01:43]} 22. Bh3 {[%emt 0:01:03]} Qc7 {[%emt 0:00:51]} 23. Qa4 {[%emt 0:01:34]} Ne7 {[%emt 0:01:03]} 24. Qd7 {[%emt 0:01:55]} Qxd7 {[%emt 0:03:44]} 25. Bxd7 {[%emt 0:00:10]} Be5 {[%emt 0:01:20]} 26. Bxe5 {[%emt 0:01:41]} dxe5 {[%emt 0:00:03]} 27. Rxe5 {[%emt 0:01:04]} Ng8 {[%emt 0:00:21]} 28. Bc6 {[%emt 0:01:35]} Nf6 {[%emt 0:02:26]} 29. Re7 {[%emt 0:04:12]} Kg7 {[%emt 0:00:13]} 30. b5 {[%emt 0:00:48]} Ng4+ {[%emt 0:00:21]} 31. Kg2 {[%emt 0:00:31]} Kf6 {[%emt 0:00:07]} 32. Ra7 {[%emt 0:01:10]} Ne5 {[%emt 0:00:37]} 33. Rb3 {[%emt 0:00:58]} h5 {[%emt 0:00:14]} 34. Rba3 {[%emt 0:02:33]} Kf5 {[%emt 0:02:45]} 35. f4 {[%emt 0:01:36]} Ng4 {[%emt 0:00:13]} 36. Kf3 {[%emt 0:00:38]} Ne3 {[%emt 0:00:44]} 37. Re7 {[%emt 0:00:39]} Kf6 {[%emt 0:00:22]} 38. Raa7 {[%emt 0:03:42]} Nf5 {[%emt 0:00:55]} 39. Rec7 {[%emt 0:01:00]} Nd6 {[%emt 0:00:33]} 40. Ra6 {[%emt 0:03:47]} Rfd8 {[%emt 0:01:39]} 41. Raa7 {[%emt 0:36:00]} Rf8 {[%emt 0:31:27]} 42. Kf2 {[%emt 0:10:46]} Rfd8 {[%emt 0:02:30]} 43. Rd7 {[%emt 0:05:37]} Kg7 {[%emt 0:00:59]} 44. Rac7 {[%emt 0:01:38]} Kf8 {[%emt 0:02:53]} 45. Kf3 {[%emt 0:05:52]} Kg7 {[%emt 0:00:05]} 46. Rxd8 {[%emt 0:00:00]} Rxd8 {[%emt 0:00:00]} 47. Bd7 {[%emt 0:00:00]} Kf8 {[%emt 0:00:00]} 48. f5 {[%emt 0:00:00]} gxf5 {[%emt 0:00:00]} 49. Kf4 {[%emt 0:00:00]} Ra8 {[%emt 0:00:00]} 50. Bxf5 {[%emt 0:00:00]} Ra3 {[%emt 0:00:00]} 51. Be4 {[%emt 0:05:04]} Ra2 {[%emt 0:00:00]} 52. Ke5 {[%emt 0:01:02]} Nxe4 {[%emt 0:00:00]} 53. Kxe4 {[%emt 0:00:18]} Re2+ {[%emt 0:00:00]} 54. Kf4 {[%emt 0:00:10]} Re3 {[%emt 0:00:00]} 55. d6 {[%emt 0:05:51]} Ke8 {[%emt 0:00:00]} 56. Re7+ {[%emt 0:00:47]} Rxe7 {[%emt 0:00:00]} 57. dxe7 {[%emt 0:00:14]} Kxe7 {[%emt 0:00:00]} 58. g4 {[%emt 0:01:15]} hxg4 {[%emt 0:00:00]} 59. Kxg4 {[%emt 0:00:08]} Kf6 {[%emt 0:00:00]} 60. h5 {[%emt 0:00:22]} Kg7 {[%emt 0:00:00]} 61. Kg5 {[%emt 0:01:07]} Kh7 {[%emt 0:00:00]} 62. h6 {[%emt 0:01:03]} f5 {[%emt 0:00:00]} 63. Kxf5 {[%emt 0:00:20]} Kxh6 {[%emt 0:00:00]} 64. Ke5 {[%emt 0:00:33]} Kg5 {[%emt 0:00:00]} 65. Kd5 {[%emt 0:00:15]} Kf4 {[%emt 0:00:00]} 66. Kc6 {[%emt 0:00:22]} Ke3 {[%emt 0:00:00]} 67. Kxb6 {[%emt 0:00:07]} Kxd3 {[%emt 0:00:00]} 68. Kxc5 {[%emt 0:00:12]} Kc3 {[%emt 0:00:00]} 69. b6 {[%emt 0:00:18]} d3 {[%emt 0:00:00]} 70. b7 {[%emt 0:00:14]} d2 {[%emt 0:00:00]} 71. b8=Q {[%emt 0:00:07]} d1=Q {[%emt 0:00:00]} 72. Qg3+ {[%emt 0:00:40]} Kb2 {[%emt 0:00:00]} 73. Kb4 {[%emt 0:01:21]} Qd2+ {[%emt 0:00:00]} 74. Kb5 {[%emt 0:03:46]} Qd7+ {[%emt 0:00:00]} 75. Kc5 {[%emt 0:00:20]} Qd8 1/2-1/2

[Event "FIDE WSTC Open 50 2025"]
[Site "Prague"]
[Date "2025.02.20"]
[Round "4.16"]
[White "Vavra, Michal"]
[Black "Wengholm, Anders"]
[Result "0-1"]
[Annotator "ChessBase"]
[ECO "E66"]
[WhiteElo "1986"]
[BlackElo "2132"]
[PlyCount "84"]
[EventDate "2025.02.17"]
[EventType "team-tourn"]
[EventCountry "CZE"]
[SourceTitle "playchess.com"]
[Source "ChessBase"]
[SourceQuality "1"]
[TimeControl "40/5400+30:1800+30"]

1. d4 {[%emt 0:00:16]} Nf6 {[%emt 0:00:59]} 2. Nf3 {[%emt 0:00:07]} g6 {[%emt 0:00:12]} 3. g3 {[%emt 0:00:33]} Bg7 {[%emt 0:00:08]} 4. Bg2 {[%emt 0:00:06]} O-O {[%emt 0:00:08]} 5. O-O {[%emt 0:00:07]} d6 {[%emt 0:00:13]} 6. c4 {[%emt 0:00:55]} c5 {[%emt 0:00:22]} 7. Nc3 {[%emt 0:03:02]} Nc6 {[%emt 0:00:36]} 8. d5 {[%emt 0:02:43]} Na5 {[%emt 0:00:26]} 9. Nd2 {[%emt 0:02:08]} e6 {[%emt 0:01:16]} 10. Qc2 {[%emt 0:06:46]} Re8 {[%emt 0:02:51]} 11. Re1 {[%emt 0:05:20]} exd5 {[%emt 0:02:00]} 12. Nxd5 {[%emt 0:03:39]} Nxd5 {[%emt 0:19:19]} 13. cxd5 {[%emt 0:03:22]} b5 {[%emt 0:01:56]} 14. Rb1 {[%emt 0:07:25]} c4 {[%emt 0:19:10]} 15. Nf3 {[%emt 0:16:03]} Nb7 {[%emt 0:15:44]} 16. Bg5 {[%emt 0:08:31]} Qa5 {[%emt 0:03:45]} 17. b4 {[%emt 0:06:35]} cxb3 {[%emt 0:00:20]} 18. axb3 {[%emt 0:06:07]} Bf5 {[%emt 0:00:48]} 19. e4 {[%emt 0:04:36]} Rac8 {[%emt 0:00:17]} 20. b4 {[%emt 0:11:28]} Rxc2 {[%emt 0:05:23]} 21. exf5 {[%emt 0:00:06]} Rxe1+ {[%emt 0:01:37]} 22. Rxe1 {[%emt 0:00:02]} Qa1 {[%emt 0:00:25]} 23. Rxa1 {[%emt 0:01:55]} Bxa1 {[%emt 0:00:11]} 24. fxg6 {[%emt 0:01:43]} hxg6 {[%emt 0:00:36]} 25. Bf1 {[%emt 0:01:56]} a6 {[%emt 0:00:38]} 26. Kg2 {[%emt 0:00:47]} Bc3 {[%emt 0:00:50]} 27. Bd3 {[%emt 0:02:40]} Rb2 {[%emt 0:00:16]} 28. Bc1 {[%emt 0:01:42]} Rxb4 {[%emt 0:02:06]} 29. h4 {[%emt 0:01:04]} Bf6 {[%emt 0:03:12]} 30. h5 {[%emt 0:01:26]} gxh5 {[%emt 0:00:08]} 31. Bf5 {[%emt 0:00:46]} Rc4 {[%emt 0:00:57]} 32. Be3 {[%emt 0:01:03]} Kg7 {[%emt 0:02:55]} 33. Nd2 {[%emt 0:00:35]} Ra4 {[%emt 0:07:26]} 34. Bc8 {[%emt 0:00:54]} Nc5 {[%emt 0:00:28]} 35. Bf4 {[%emt 0:00:27]} Be7 {[%emt 0:00:19]} 36. Nf3 {[%emt 0:00:21]} b4 {[%emt 0:06:53]} 37. Nd4 {[%emt 0:00:05]} b3 {[%emt 0:00:15]} 38. Nf5+ {[%emt 0:01:21]} Kf8 {[%emt 0:00:49]} 39. Bh6+ {[%emt 0:00:37]} Ke8 {[%emt 0:00:11]} 40. Ng7+ {[%emt 0:00:18]} Kd8 {[%emt 0:00:20]} 41. Bf5 {[%emt 0:01:14]} b2 {[%emt 0:00:22]} 42. Be3 {[%emt 0:04:35]} Ra1 {[%emt 0:01:07]} 0-1

[Event "FIDE WSTC Open 50 2025"]
[Site "Prague"]
[Date "2025.02.20"]
[Round "4.17"]
[White "Davies, Nigel R"]
[Black "Haba, Petr"]
[Result "1/2-1/2"]
[Annotator "RC"]
[ECO "D27"]
[WhiteElo "2294"]
[BlackElo "2442"]
[PlyCount "29"]
[EventDate "2025.02.17"]
[EventType "team-tourn"]
[EventCountry "CZE"]
[SourceTitle "playchess.com"]
[Source "ChessBase"]
[SourceQuality "1"]
[TimeControl "40/5400+30:1800+30"]

1. Nf3 {[%emt 0:00:38]} d5 {[%emt 0:01:20]} 2. c4 {[%emt 0:03:23]} dxc4 {[%emt 0:00:27]} 3. e3 {[%emt 0:00:34]} Nf6 {[%emt 0:00:53]} 4. Bxc4 {[%emt 0:00:16]} e6 {[%emt 0:00:06]} 5. d4 {[%emt 0:00:35]} c5 {[%emt 0:00:26]} 6. O-O {[%emt 0:00:21]} a6 {[%emt 0:00:07]} 7. b3 {[%emt 0:03:31]} cxd4 {[%emt 0:06:20]} 8. Nxd4 {[%emt 0:01:58]} Bd6 {[%emt 0:00:56]} 9. Nf3 {[%emt 0:08:59]} O-O {[%emt 0:03:06]} 10. Bb2 {[%emt 0:07:04]} Nc6 {[%emt 0:03:28]} 11. Nbd2 {[%emt 0:05:31]} Qe7 {[%emt 0:06:15]} 12. Rc1 {[%emt 0:14:04]} Rd8 {[%emt 0:04:49]} 13. Qc2 {[%emt 0:00:38]} Bd7 {[%emt 0:03:15]} 14. Ne4 {[%emt 0:03:22]} Nxe4 {[%emt 0:14:02]} 15. Qxe4 {[%emt 0:00:21]} 1/2-1/2

[Event "FIDE WSTC Open 50 2025"]
[Site "Prague"]
[Date "2025.02.20"]
[Round "4.18"]
[White "Jirovsky, Milos"]
[Black "Dishman, Stephen"]
[Result "0-1"]
[Annotator "RC"]
[ECO "D02"]
[WhiteElo "2410"]
[BlackElo "2273"]
[PlyCount "60"]
[EventDate "2025.02.17"]
[EventType "team-tourn"]
[EventCountry "CZE"]
[SourceTitle "playchess.com"]
[Source "ChessBase"]
[SourceQuality "1"]
[TimeControl "40/5400+30:1800+30"]

1. Nf3 {[%emt 0:01:32]} d5 {[%emt 0:00:06]} 2. d4 {[%emt 0:00:12]} Nf6 {[%emt 0:00:22]} 3. c4 {[%emt 0:00:13]} c6 {[%emt 0:00:23]} 4. Qb3 {[%emt 0:00:14]} e6 {[%emt 0:00:30]} 5. g3 {[%emt 0:00:17]} Be7 {[%emt 0:00:12]} 6. Bg2 {[%emt 0:00:09]} O-O {[%emt 0:00:19]} 7. O-O {[%emt 0:00:14]} Nbd7 {[%emt 0:00:07]} 8. Bf4 {[%emt 0:01:28]} a5 {[%emt 0:01:16]} 9. Rc1 {[%emt 0:01:21]} Ne4 {[%emt 0:02:53]} 10. Nfd2 {[%emt 0:01:17]} g5 {[%emt 0:07:43]} 11. Nxe4 {[%emt 0:04:16]} gxf4 {[%emt 0:01:04]} 12. Ned2 {[%emt 0:00:28]} Bf6 {[%emt 0:04:01]} 13. Nf3 {[%emt 0:03:24]} fxg3 {[%emt 0:01:17]} 14. hxg3 {[%emt 0:00:13]} b5 {[%emt 0:05:27]} 15. cxb5 {[%emt 0:06:13]} cxb5 {[%emt 0:00:09]} 16. Nc3 {[%emt 0:00:11]} b4 {[%emt 0:06:49]} 17. Na4 {[%emt 0:00:24]} Ba6 {[%emt 0:01:28]} 18. Bf1 {[%emt 0:01:16]} Rc8 {[%emt 0:03:33]} 19. e3 {[%emt 0:07:05]} Bxf1 {[%emt 0:10:35]} 20. Kxf1 {[%emt 0:00:17]} Nb6 {[%emt 0:09:26]} 21. Nc5 {[%emt 0:04:02]} Nc4 {[%emt 0:01:38]} 22. Rc2 {[%emt 0:04:57]} Be7 {[%emt 0:04:27]} 23. Na4 {[%emt 0:02:58]} Qe8 {[%emt 0:04:17]} 24. Kg2 {[%emt 0:02:39]} f6 {[%emt 0:06:07]} 25. Rh1 {[%emt 0:04:11]} Qg6 {[%emt 0:03:35]} 26. Rcc1 {[%emt 0:00:28]} Rc7 {[%emt 0:04:03]} 27. Nb6 {[%emt 0:05:48]} a4 {[%emt 0:01:39]} 28. Nxa4 {[%emt 0:00:42]} Rfc8 {[%emt 0:00:29]} 29. Rcf1 {[%emt 0:11:09]} Bd6 {[%emt 0:03:03]} 30. Qd1 {[%emt 0:01:09]} Nxe3+ 0-1